Cogmind - Beta 12 @@@ ROGUE MODE // 2023.06.02 @ 13:03:05 Player: desik-rg Result: Self-destructed Performance ------------- Evolutions (6) 3000 Regions Visited (23) 4600 Robots Destroyed (469) 2345 Value Destroyed (19267) 19267 Prototype IDs (74) 1480 Alien Tech Used (1) 200 Bonus (2367) 2367 TOTAL SCORE: 33259 Bonus ------- High Alert Combat Kills 1262 Follower Combat Kills 132 Network Hubs Disabled 200 Aligned with FarCom 300 Met Imprinter 300 Met R17 at Cetus 500 Friendly Fire -327 Cogmind --------- Core Integrity 947/1150 Matter 272/300 Energy 0/300 System Corruption 3% Temperature Cool (-200) Movement Rolling (145) Ox3 Location -4/Factory Parts ------- > --- POWER (2) -------- (None) > --- PROPULSION (3) --- Armored Huge Wheel > --- UTILITY (12) ----- Advanced Cryofiber Web Huge Storage Unit Compact Battery Improved Trap Scanner Advanced Targeting Computer Quantum Capacitor Improved Transmission Jammer Experimental ECM Suite Layered Medium Armor Plating Improved Dynamic Insulation System > --- WEAPON (2) ------- Compact Tesla Bomb Launcher > --- INVENTORY (25) --- Centrium Heavy Treads Precision Energy Filter Improved Particle Charger Advanced Thermal Shield EM Disruption Field Advanced System Restoration Module Hacking Drone Bay (1/1) Dispersion Rifle Heavy Disruptor Cannon Mass Driver Advanced Datajack Peak State ------------ > --- POWER ------------ Quantum Reactor Quantum Reactor > --- PROPULSION ------- Armored Wheel Armored Huge Wheel > --- UTILITY ---------- Advanced Heat Sink Huge Storage Unit Improved Trap Scanner Precision Energy Filter Improved Weapon Cycler Improved Transmission Jammer Improved Remote Shield Improved System Shield Improved Dynamic Insulation System Advanced System Restoration Module Advanced Drone Bay > --- WEAPON ----------- Mass Driver Compact Tesla Bomb Launcher > --- INVENTORY -------- Hybrid Fission Core Quantum Reactor Centrium Heavy Treads Compact Battery Improved Particle Charger Hardened Medium Armor Plating Hardened Heavy Armor Plating Layered Medium Armor Plating Layered Medium Armor Plating Heavy Reactive Plating Advanced Thermal Shield Advanced Hacking Suite Advanced System Restoration Module Hacking Drone Bay Cooled Plasma Rifle Enhanced Force Rifle Cooled Plasma Cannon Mass Driver Mass Driver [Rating: 121] Favorites ----------- Power Quantum Reactor Engine Cooled Deuterium Engine Power Core Hybrid Fission Core Reactor Quantum Reactor Propulsion Armored Huge Wheel Treads Light Treads Leg Aluminum Leg Wheel Armored Huge Wheel Hover Unit Improved Hover Unit Flight Unit Cooled VTOL Module Utility Hacking Suite Device Advanced Heat Sink Storage High-capacity Storage Unit Processor Core Analyzer Hackware Hacking Suite Protection Hardened Medium Armor Plating Weapon Guided Plasma Cannon Energy Gun Cooled Plasma Rifle Energy Cannon Guided Plasma Cannon Ballistic Gun Advanced KE Penetrator Ballistic Cannon Mass Driver Launcher Precision Grenade Launcher Special Weapon Improved Remote Datajack Impact Weapon Impact Mace Slashing Weapon Mining Claw Special Melee Weapon Advanced Datajack Build | -11 -10 -10 -9 -9 -9 -8 -8 -7 -7 -7 -7 -6 -6 -6 -6 -6 -6 -5 -5 -5 -5 -4 -4 ------- Run | Jun Mat Min Mat Min Exi Min Mat Fac Low Low Zio Pro Fac Ext Cet Arc Hub Fac Upp Upp Zhi Pro Fac Slots Evolved 12 | . . . 2 . . . 2 2 . . . . 2 . . . . 2 . . . . 2 Power 1 | . . . . . . . . . . . . . . . . . . 1 . . . . . Propulsion 1 | . . . . . . . . . . . . . . . . . . 1 . . . . . Utility 10 | . . . 2 . . . 2 2 . . . . 2 . . . . . . . . . 2 Weapon . | . . . . . . . . . . . . . . . . . . . . . . . . Parts Attached 781 | 6 44 1 65 22 2 1 45 67 3 12 22 6 115 30 51 13 35 127 35 20 . 26 33 Power 31 | 1 1 . 4 1 . . 1 5 . . 2 . 6 . 3 . . 4 1 1 . . 1 Engine 19 | 1 1 . 4 1 . . . 4 . . 2 . 4 . 1 . . . . . . . 1 Core 5 | . . . . . . . 1 1 . . . . 1 . . . . 2 . . . . . Reactor 7 | . . . . . . . . . . . . . 1 . 2 . . 2 1 1 . . . Propulsion 212 | 2 22 . 35 11 2 . 12 21 . 1 1 . 4 1 11 4 12 38 13 6 . 11 5 Treads 89 | . 6 . 15 7 . . 5 11 . . . . . . 3 2 6 17 6 3 . 6 2 Leg 8 | . 5 . 3 . . . . . . . . . . . . . . . . . . . . Wheel 111 | 2 11 . 17 4 2 . 7 9 . 1 1 . 4 1 6 2 6 20 7 3 . 5 3 Hover 1 | . . . . . . . . . . . . . . . 1 . . . . . . . . Flight 3 | . . . . . . . . 1 . . . . . . 1 . . 1 . . . . . Utility 293 | 1 5 1 11 6 . . 14 16 2 9 13 5 49 17 19 4 12 55 16 6 . 9 23 Device 179 | . 1 1 6 6 . . 9 9 1 4 5 4 29 8 10 3 4 38 11 4 . 9 17 Storage 7 | 1 1 . . . . . . . . 1 . . 1 . . . 1 . . 1 . . 1 Processor 7 | . 2 . 1 . . . . . . . 1 . 1 . . . . 1 . . . . 1 Hackware 21 | . . . . . . . 4 1 . . . . 5 2 2 . 5 1 . . . . 1 Protection 79 | . 1 . 4 . . . 1 6 1 4 7 1 13 7 7 1 2 15 5 1 . . 3 Artifact . | . . . . . . . . . . . . . . . . . . . . . . . . Weapon 245 | 2 16 . 15 4 . 1 18 25 1 2 6 1 56 12 18 5 11 30 5 7 . 6 4 Energy Gun 35 | 1 5 . 3 . . . 2 2 1 1 1 1 1 1 4 1 1 9 1 . . . . Energy Cannon 74 | . . . 6 1 . 1 3 10 . . . . 26 3 4 1 3 11 1 2 . . 2 Ballistic Gun 43 | 1 5 . 1 1 . . 4 3 . . . . 10 2 3 2 5 6 . . . . . Ballistic Cannon 48 | . . . 1 1 . . 7 8 . . 3 . 14 4 1 . . . 2 3 . 3 1 Launcher 28 | . . . . 1 . . . 2 . 1 2 . 3 2 6 . 2 2 1 2 . 3 1 Special Weapon 3 | . . . . . . . . . . . . . 1 . . . . 2 . . . . . Impact Weapon 8 | . 2 . 3 . . . 2 . . . . . 1 . . . . . . . . . . Slashing Weapon 5 | . 4 . 1 . . . . . . . . . . . . . . . . . . . . Piercing Weapon . | . . . . . . . . . . . . . . . . . . . . . . . . Special Melee Weapon 1 | . . . . . . . . . . . . . . . . 1 . . . . . . . Unidentified Prototypes 33 | . 1 1 1 . . . 4 6 . 1 1 . 5 . 4 . 2 5 . . . . 2 Corrupted Parts 3 | . . . . . . . . . . . . . . . 2 . 1 . . . . . . System Corruption 19 | . . . . . . . . . . . . . . . 9 . 10 . . . . . . Parts Lost 38 | . 2 . . . . . 1 2 . 1 9 2 . 1 4 . . 1 3 1 . . 11 Power 5 | . . . . . . . . 1 . . 1 . . . . . . . . . . . 3 Propulsion 5 | . 1 . . . . . . . . . 1 . . . . . . . 1 . . . 2 Utility 24 | . . . . . . . 1 1 . 1 5 2 . 1 4 . . 1 2 1 . . 5 Weapon 4 | . 1 . . . . . . . . . 2 . . . . . . . . . . . 1 Highest Loss Streak 10 | . 1 . . . . . 1 1 . 1 7 2 . 1 2 . . 1 2 1 . . 10 To Critical Strikes 1 | . . . . . . . . . . . 1 . . . . . . . . . . . . Average Slot Usage (%) 91 | . 98 100 99 100 100 100 99 93 92 91 90 90 90 85 85 83 88 91 81 81 82 83 89 Engine 4 | . 14 14 11 11 11 11 2 6 7 7 7 7 5 6 1 . . . . . . . . Core 1 | . . . . . . . 6 . . . . . . . . . . 4 . . . . . Reactor 2 | . . . . . . . . . . . . . . . 4 6 6 5 10 11 11 11 9 Treads 2 | . 8 . 15 20 . . . . . . . . . . . 4 3 . 2 10 . . . Wheel 8 | . 18 28 5 1 21 22 17 8 7 6 6 7 5 5 5 1 2 8 5 . 11 9 9 Device 17 | . 2 14 22 28 33 33 17 15 15 15 16 21 11 26 17 16 14 13 20 23 29 31 33 Storage 7 | . 14 14 11 11 11 11 9 7 7 7 7 7 6 6 6 6 6 5 5 8 5 5 5 Processor 3 | . 3 . 3 . . . . . . . 1 7 6 6 6 6 6 5 5 1 . . 3 Hackware 16 | . . . . . . . 26 25 23 23 22 15 31 . 5 6 21 26 8 5 5 5 6 Protection 8 | . 6 . 6 4 . . . 12 14 14 12 7 7 19 21 21 11 4 6 4 5 4 8 Energy Gun 2 | . 16 . 2 . . . . . . 8 6 6 . . . . . 3 3 . . . . Energy Cannon 5 | . . . 12 5 . 11 8 7 14 3 . . 6 6 1 5 . 4 3 . 5 . 4 Ballistic Gun 2 | . 9 28 4 9 11 . 2 2 . . . . 1 2 6 3 11 1 . . . . . Ballistic Cannon 2 | . . . 1 3 11 11 5 4 . . 3 7 3 2 . . . . 2 6 5 7 4 Naked Turns . | . . . . . . . . . . . . . . . . . . . . . . . . Heaviest Build 187 | 13 52 59 68 73 65 72 75 90 90 83 85 85 110 122 152 144 147 168 187 174 173 174 176 Greatest Support 108 | 32 40 26 43 43 32 32 42 42 28 28 28 28 28 28 80 80 80 80 80 108 40 80 40 Greatest Overweight (x) 21 | . 1 2 6 2 2 2 5 4 3 2 3 3 21 4 5 5 5 5 6 6 4 4 6 Average Overweight (x) 2 | . . 1 1 1 2 2 1 2 2 2 2 2 2 3 4 2 2 3 3 1 4 3 4 Largest Inventory Capacity 25 | 8 20 20 20 20 20 20 20 20 20 20 20 20 20 20 20 20 25 25 25 25 25 25 25 Average Capacity 21 | 7 18 20 20 20 20 20 20 20 20 20 20 20 20 20 20 20 23 25 25 25 25 25 25 Most Carried 25 | 4 20 20 20 20 20 20 20 20 20 20 20 19 20 20 20 20 25 25 25 25 25 25 25 Average Carried 20 | 2 14 19 19 19 19 20 19 19 20 19 19 16 19 19 19 19 22 23 24 24 25 24 18 Final Capacity 25 | 8 20 20 20 20 20 20 20 20 20 20 20 20 20 20 20 20 25 25 25 25 25 25 25 Final Carried 25 | 4 19 20 20 20 20 20 20 20 20 20 20 17 20 20 20 20 25 25 25 25 25 25 24 Class Distribution -------------------- 46% | Hacker-Mutant 23% | Mutant 17% | Scavenger-Mutant 12% | Wizard-Mutant Dominant Class ---------------- Mutant | -10/Materials Mutant | -10/Mines Mutant | -9/Materials Mutant | -9/Mines Mutant | -9/Exiles Mutant | -8/Mines Hacker-Mutant | -8/Materials Hacker-Mutant | -7/Factory Hacker-Mutant | -7/Lower Caves Hacker-Mutant | -7/Lower Caves Hacker-Mutant | -7/Zion Hacker-Mutant | -6/Proximity Caves Hacker-Mutant | -6/Factory Mutant | -6/Extension Scavenger-Mutant | -6/Cetus Scavenger-Mutant | -6/Archives Scavenger-Mutant | -6/Hub_04(d) Hacker-Mutant | -5/Factory Scavenger-Mutant | -5/Upper Caves Scavenger-Mutant | -5/Upper Caves Mutant | -5/Zhirov Scavenger-Mutant | -4/Proximity Caves Hacker-Mutant | -4/Factory Resources | -11 -10 -10 -9 -9 -9 -8 -8 -7 -7 -7 -7 -6 -6 -6 -6 -6 -6 -5 -5 -5 -5 -4 -4 ----------- Run | Jun Mat Min Mat Min Exi Min Mat Fac Low Low Zio Pro Fac Ext Cet Arc Hub Fac Upp Upp Zhi Pro Fac Matter Collected 13258 | 260 441 38 865 469 . 38 710 1075 136 195 511 355 1932 599 1156 250 813 1469 461 326 . 712 447 Remotely . | . . . . . . . . . . . . . . . . . . . . . . . . Salvage Created 19761 | . 620 . 1189 412 . . 1493 1346 48 509 631 475 2135 715 1429 645 2126 2603 1299 269 . 709 1108 Parts 948 | . 38 . 75 27 . . 74 66 6 25 59 8 98 32 65 23 91 123 44 8 . 42 44 Haulers Intercepted 14 | . 1 . 3 . . . 2 2 . . . . 1 . . . 3 1 . . . . 1 Recyclers Shooed 9 | . . . 1 . . . 1 1 . . . . 3 2 . . . 1 . . . . . Parts Field Recycled . | . . . . . . . . . . . . . . . . . . . . . . . . Retrieved Matter . | . . . . . . . . . . . . . . . . . . . . . . . . Parts Self-Destructed 107 | . . . . . . . . . 6 23 . 7 . . . . . . 37 11 . 23 . Prevented 30 | . . . . . . . . . . . . . . . . . . . 9 2 . 19 . Kills | -11 -10 -10 -9 -9 -9 -8 -8 -7 -7 -7 -7 -6 -6 -6 -6 -6 -6 -5 -5 -5 -5 -4 -4 ------- Run | Jun Mat Min Mat Min Exi Min Mat Fac Low Low Zio Pro Fac Ext Cet Arc Hub Fac Upp Upp Zhi Pro Fac Combat Hostiles Destroyed 369 | . 15 . 22 12 . . 29 33 1 11 6 6 42 14 45 4 26 43 25 5 . 17 13 Melee 1 | . 1 . . . . . . . . . . . . . . . . . . . . . . Guns 113 | . 14 . 9 6 . . 4 1 . 4 1 3 7 1 12 2 15 25 9 . . . . Cannons 152 | . . . 13 5 . . 25 23 1 5 1 3 27 9 3 1 . 14 9 3 . 7 3 AOE 86 | . . . . 1 . . . 8 . 1 4 . 5 4 28 . 11 3 5 2 . 7 7 Classes Destroyed 24 | . 5 . 3 2 . . 2 3 . 1 3 1 1 . . . 1 1 . . . 1 . Worker 4 | . . . . . . . . . . . . . . . . . 2 1 . . . . 1 Builder 8 | . . . . 1 . . . . . . . . . . . . 5 . . . . . 2 Tunneler 1 | . . . 1 . . . . . . . . . . . . . . . . . . . . Hauler 14 | . 1 . 3 . . . 2 2 . . . . 1 . . . 3 1 . . . . 1 Recycler 10 | . . . 2 . . . . 1 . . . . 1 1 . . 3 2 . . . . . Mechanic 1 | . . . . . . . . . . . . . . . . . . 1 . . . . . Operator 18 | . 2 . 2 . . . 3 . . . . . . 2 . 9 . . . . . . . Drone 1 | . . . . . . . . . . . . . . . . . . . . . . 1 . Watcher 24 | . 2 . 4 . . . 3 1 . . . . 6 . 2 . 1 4 . . . . 1 Swarmer 92 | . 6 . 8 2 . . 4 4 . . . . 6 . 18 . 6 14 8 4 . 8 4 Saboteur 1 | . . . . . . . . . . . . . 1 . . . . . . . . . . Grunt 142 | . 9 . 8 9 . . 16 18 . 6 . 4 12 8 13 . 11 7 12 . . 4 5 Brawler 9 | . . . . . . . 2 . . . . . 2 . 1 . 2 . 1 . . 1 . Duelist 9 | . . . . . . . . 1 . . . 1 2 2 2 . 1 . . . . . . Protector 1 | . . . . . . . . 1 . . . . . . . . . . . . . . . Sentry 41 | . . . 6 . . . 6 6 . 1 . 1 6 2 . 4 5 2 2 . . . . Demolisher 1 | . . . . 1 . . . . . . . . . . . . . . . . . . . Hunter 11 | . . . . . . . 1 . . . . . . 2 3 . . 3 . 1 . . 1 Programmer 46 | . . . . . . . . 3 1 3 . . 13 . . . 1 17 2 . . 3 3 Cetus Guard 8 | . . . . . . . . . . . . . . . 8 . . . . . . . . Zionite 31 | . . . . . . . . . . . 31 . . . . . . . . . . . . Packrat 2 | . . . . . . . . . . . . 2 . . . . . . . . . . . Samaritan 1 | . . . . . . . . . . . . 1 . . . . . . . . . . . Tinkerer 2 | . . . . . . . . . . . 2 . . . . . . . . . . . . Butcher 1 | . . . . . . . . . . . 1 . . . . . . . . . . . . Fireman 1 | . . . . . . . . . . . 1 . . . . . . . . . . . . Mutant 4 | . . . . . . . . . . 1 3 . . . . . . . . . . . . Best Kill Streak 26 | . 5 . 4 3 . . 4 9 1 5 26 4 5 6 8 2 10 6 8 3 . 4 7 Combat Bots Only 9 | . 3 . 3 3 . . 4 9 1 5 3 4 5 6 7 2 8 5 8 3 . 4 5 Max Kills in Single Turn 6 | . 1 . 2 1 . . 2 2 1 1 1 2 3 2 4 1 6 2 2 2 . 2 3 Gunslinging 1 | . . . . . . . . . . . . . . . . . . 1 . . . . . Exploded 5 | . . . . 1 . . . 2 . 1 1 . 3 2 4 . 5 2 2 2 . 2 3 Melee 1 | . 1 . . . . . . . . . . . . . . . . . . . . . . Uniques/NPCs Destroyed 1 | . . . . . . . . . . . 1 . . . . . . . . . . . . Imprinter (-7/Zion) Combat | -11 -10 -10 -9 -9 -9 -8 -8 -7 -7 -7 -7 -6 -6 -6 -6 -6 -6 -5 -5 -5 -5 -4 -4 -------- Run | Jun Mat Min Mat Min Exi Min Mat Fac Low Low Zio Pro Fac Ext Cet Arc Hub Fac Upp Upp Zhi Pro Fac Damage Taken 16739 | . 764 . 400 601 . . 332 1322 14 597 1254 442 1202 745 1763 304 603 1280 2094 302 . 761 1959 Core 1464 | . 152 . 60 50 . . 54 154 . 49 151 69 127 38 74 12 17 64 138 . . 52 203 Absorbed by Shields 5879 | . . . 156 216 . . 14 298 . 159 572 35 505 203 882 245 568 991 741 . . . 294 Reduced by Siege Mode 284 | . . . . . . . . . . . . . . . 27 9 38 85 79 13 . 25 8 Redirected to Shielding 19 | . 19 . . . . . . . . . . . . . . . . . . . . . . Regen/Repaired (Parts) 3252 | . 89 . 45 . . . 46 . . . . . 1200 . . . . 1872 . . . . . Core Remaining (%) 68 | 100 . 39 . . . 72 90 . . . . 39 . . . . 68 . . . . 74 . Volleys Fired 1353 | . 43 . 77 36 . . 108 119 1 34 113 26 211 47 93 60 61 149 70 17 . 44 44 Largest 2 | . 2 . 2 2 . . 2 2 2 2 2 2 2 2 2 2 2 2 2 2 . 2 2 Hottest 177 | . 100 . 136 102 . . 120 120 140 140 123 128 143 158 140 115 120 177 177 114 . 114 155 Shots Fired 2011 | . 86 1 153 67 . 1 114 164 2 55 143 43 304 64 137 88 107 241 103 23 . 60 55 Gun 827 | . 86 1 71 30 . . 4 9 1 25 85 17 64 8 92 36 93 144 61 . . . . Cannon 1060 | . . . 82 34 . 1 110 148 1 26 38 26 234 51 19 52 7 91 38 18 . 39 45 Launcher 117 | . . . . 3 . . . 7 . 4 20 . 2 5 26 . 7 3 4 5 . 21 10 Special 7 | . . . . . . . . . . . . . 4 . . . . 3 . . . . . Kinetic 788 | . 23 1 69 42 . 1 35 74 . . 38 26 153 23 73 30 93 41 . 13 . 38 15 Thermal 1071 | . 63 . 84 17 . . 79 83 2 51 85 17 140 36 20 58 7 194 99 5 . 1 30 Explosive 74 | . . . . 3 . . . 7 . 4 20 . 2 5 26 . 7 . . . . . . Electromagnetic 71 | . . . . 5 . . . . . . . . 5 . 18 . . 3 4 5 . 21 10 Robot Hit Streak 31 | . 11 . 16 7 . . 20 15 2 13 12 14 19 5 31 22 21 30 26 7 . 9 16 Robot Miss Streak 14 | . 2 1 7 6 . 1 4 14 . 3 5 4 7 3 3 2 3 4 2 2 . 3 3 Penetration Max 1 | . . . . . . . . . . . . . 1 1 1 1 1 1 . . . . . Secondary Targets 7 | . 1 . . . . . . . . . . . . . 1 . 1 4 . . . . . Max Gunslinging Chain 1 | . 1 . . . . . . . . . . . . . 1 . 1 1 . . . . . Capacitor 19 | . . . . . . . . . . . . . . . . . . . . . . . 19 Shots Hit Robots 1237 | . 68 . 90 37 . . 37 84 1 36 108 36 152 25 96 81 77 151 78 13 . 28 39 Core Hits 908 | . 32 . 39 23 . . 41 99 1 43 86 27 113 48 100 27 63 69 40 9 . 21 27 Critical Kills 18 | . . . 1 . . . . . . . . . 2 1 5 3 6 . . . . . . Critical Parts Destroyed 16 | . . . 1 . . . 1 . . . . . 5 . 3 . 4 2 . . . . . Critical Strikes 63 | . 6 . 2 . . . 2 1 . . . 3 8 1 10 3 10 7 7 1 . 2 . Burn 18 | . 6 . . . . . . . . . . . . . . . . 5 7 . . . . Meltdown 6 | . . . 1 . . . . . . . . . 2 . 2 1 . . . . . . . Destroy 26 | . . . 1 . . . . . . . . . 3 1 7 2 10 2 . . . . . Blast 8 | . . . . . . . 1 1 . . . 3 . . . . . . . 1 . 2 . Corrupt 2 | . . . . . . . . . . . . . 1 . 1 . . . . . . . . Smash 3 | . . . . . . . 1 . . . . . 2 . . . . . . . . . . Melee Attacks 44 | . 18 . 7 . . . 4 . . . . . 6 . . 9 . . . . . . . Impact 16 | . . . 6 . . . 4 . . . . . 6 . . . . . . . . . . Slashing 19 | . 18 . 1 . . . . . . . . . . . . . . . . . . . . Piercing . | . . . . . . . . . . . . . . . . . . . . . . . . Sneak Attacks 14 | . 2 . 1 . . . 2 . . . . . . . . 9 . . . . . . . Combat Hostiles . | . . . . . . . . . . . . . . . . . . . . . . . . Follow-up Attacks . | . . . . . . . . . . . . . . . . . . . . . . . . Damage Inflicted 48788 | . 965 . 1760 783 . . 3581 4074 32 1049 2415 981 6278 1961 6277 2234 3526 5703 2793 401 . 1703 2272 Guns 14426 | . 653 . 663 286 . . 66 122 . 504 1034 392 1140 62 1915 849 2020 3429 1291 . . . . Cannons 22263 | . . . 1029 389 . . 3296 2819 32 440 351 589 4664 992 617 1385 237 2148 935 284 . 892 1164 Explosions 11375 | . . . . 108 . . . 1133 . 105 1030 . 349 907 3745 . 1269 126 567 117 . 811 1108 Melee 724 | . 312 . 68 . . . 219 . . . . . 125 . . . . . . . . . . Ramming . | . . . . . . . . . . . . . . . . . . . . . . . . Kinetic 13305 | . 100 . 696 399 . . 490 987 . . 351 589 2592 383 1656 690 2020 871 . 185 . 861 435 Thermal 23234 | . 553 . 996 191 . . 2872 1954 32 944 1034 392 3038 754 639 1544 237 4706 2397 99 . 31 821 Explosive 7893 | . . . . 61 . . . 1133 . 105 1030 . 349 824 3745 . 646 . . . . . . Electromagnetic 3632 | . . . . 132 . . . . . . . . 174 . 237 . 623 126 396 117 . 811 1016 Impact 344 | . . . . . . . 219 . . . . . 125 . . . . . . . . . . Slashing 380 | . 312 . 68 . . . . . . . . . . . . . . . . . . . . Piercing . | . . . . . . . . . . . . . . . . . . . . . . . . Highest Corruption 12 | . 1 1 2 2 2 2 . 2 1 1 . . 3 2 6 . 12 3 . . . 1 3 Average Corruption 1 | . 1 1 2 2 2 2 . 1 1 1 . . 1 1 2 . 11 1 . . . 1 2 Corruption Purged 32 | . . . . . . . . 2 1 1 . . 6 2 12 . . 7 . . . 1 . Corruption Blocked . | . . . . . . . . . . . . . . . . . . . . . . . . Effects 97 | . . 4 25 12 7 11 . . . 1 . . 19 . 11 . . 3 . . . 4 . Message Errors 23 | . . 1 5 2 3 2 . . . . . . 6 . 3 . . . . . . 1 . Matter Fused 31 | . . 1 11 5 1 3 . . . 1 . . 4 . 2 . . 1 . . . 2 . Heat Flow Errors 4 | . . . 1 . 1 1 . . . . . . 1 . . . . . . . . . . Energy Discharges 15 | . . . 3 3 2 2 . . . . . . 3 . 2 . . . . . . . . Parts Rejected 1 | . . . 1 . . . . . . . . . . . . . . . . . . . . Parts Fused 2 | . . . . . . . . . . . . . . . 1 . . . . . . 1 . Data Loss (minor) 10 | . . 1 2 1 . 2 . . . . . . 2 . 1 . . 1 . . . . . Data Loss (major) 2 | . . . . . . . . . . . . . 2 . . . . . . . . . . Misfires 7 | . . 1 2 1 . 1 . . . . . . 1 . 1 . . . . . . . . Weapon Failures 2 | . . . . . . . . . . . . . . . 1 . . 1 . . . . . Overload Shots 54 | . . . . . . . . . . . . . 5 2 3 . . 38 6 . . . . Effects 2 | . . . . . . . . . . . . . . . . . . 2 . . . . . Energy Bleed 2 | . . . . . . . . . . . . . . . . . . 2 . . . . . Overflow Damage 1128 | . 44 . 67 . . . 195 52 . . 36 20 224 23 67 45 11 98 13 12 . 103 118 Projectiles 794 | . . . 39 . . . 165 30 . . 17 20 172 23 . 45 4 98 . 5 . 102 74 Explosions 180 | . . . . . . . . 22 . . 19 . . . 67 . 7 . 13 7 . 1 44 Melee 154 | . 44 . 28 . . . 30 . . . . . 52 . . . . . . . . . . Knockbacks 108 | . . . . 1 . . 5 28 . . 4 4 37 19 . . . . . 2 . 7 1 Impact . | . . . . . . . . . . . . . . . . . . . . . . . . Kinetic 98 | . . . . 1 . . 5 26 . . 4 3 34 15 . . . . . 2 . 7 1 Secondary 10 | . . . . . . . . 2 . . . 1 3 4 . . . . . . . . . Self-Inflicted Damage 786 | . . . . 98 . . . . . . 6 . . 191 23 . 130 . 111 . . 134 93 Shots 29 | . . . . 2 . . . . . . 1 . . 2 2 . 3 . 4 . . 8 7 Rammed . | . . . . . . . . . . . . . . . . . . . . . . . . Targets Rammed . | . . . . . . . . . . . . . . . . . . . . . . . . Kicked . | . . . . . . . . . . . . . . . . . . . . . . . . Crushed . | . . . . . . . . . . . . . . . . . . . . . . . . Highest Temperature 394 | . 174 . 394 312 241 155 345 192 9 211 36 145 351 288 305 135 310 377 371 390 . 330 338 Average Temperature 95 | . 48 . 78 125 133 83 114 50 6 88 12 65 83 58 141 48 69 89 142 108 . 99 160 Received Heat Transfer 3183 | . 240 . 108 150 . . 153 267 . 285 195 93 234 155 276 74 158 109 516 . . . 170 Effects 23 | . . . 1 . 2 . 5 . . 1 . . . . . . . 3 5 4 . . 2 Shutdowns 5 | . . . . . . . 1 . . . . . . . . . . . 2 2 . . . Energy Bleed 4 | . . . 1 . . . 1 . . 1 . . . . . . . 1 . . . . . Interference 11 | . . . . . 2 . 3 . . . . . . . . . . 2 . 2 . . 2 Matter Decay 1 | . . . . . . . . . . . . . . . . . . . 1 . . . . Short Circuit 1 | . . . . . . . . . . . . . . . . . . . 1 . . . . Damage (minor) 1 | . . . . . . . . . . . . . . . . . . . 1 . . . . Siege Activations 58 | . . . . . . . . . . . . . . . 2 9 12 19 7 1 . 6 2 Total Turns 1201 | . . . . . . . . . . . . . . . 61 132 277 408 220 17 . 55 31 Longest Duration 127 | . . . . . . . . . . . . . . . 59 41 127 104 56 17 . 21 26 Robots Corrupted 6 | . . . . . . . . . . . . . 1 . . . . . . . . 3 2 Combat Hostiles 5 | . . . . . . . . . . . . . . . . . . . . . . 3 2 Parts Fried 17 | . . . . . . . . . . . . . . . 2 . 3 . 1 . . 3 8 Impact Corruptions 4 | . . . . . . . 2 . . . . . 2 . . . . . . . . . . Robots Melted 13 | . . . 1 . . . . 1 . 1 . . 2 . 2 1 . 2 2 . . . 1 Combat Hostiles 11 | . . . . . . . . 1 . 1 . . 2 . 2 1 . 1 2 . . . 1 Parts Melted 106 | . 6 . 2 . . . 9 3 . 2 6 1 16 2 3 10 . 23 18 . . . 5 Heat Transferred 41690 | . 2025 . 1776 309 . . 6320 3559 37 970 816 875 5800 1400 974 2335 500 8057 4687 150 . 50 1050 Parts Sabotaged . | . . . . . . . . . . . . . . . . . . . . . . . . Parts Stolen . | . . . . . . . . . . . . . . . . . . . . . . . . Parts Stripped . | . . . . . . . . . . . . . . . . . . . . . . . . Power Chain Reactions 1 | . . . . . . . . . . . . . . . . . . . . . . 1 . Missiles Intercepted . | . . . . . . . . . . . . . . . . . . . . . . . . Alert | -11 -10 -10 -9 -9 -9 -8 -8 -7 -7 -7 -7 -6 -6 -6 -6 -6 -6 -5 -5 -5 -5 -4 -4 ------- Run | Jun Mat Min Mat Min Exi Min Mat Fac Low Low Zio Pro Fac Ext Cet Arc Hub Fac Upp Upp Zhi Pro Fac Peak Influence 927 | . 249 46 335 518 . . 390 757 . . . . 680 545 927 506 853 789 . . . . 524 Initial 509 | . . 46 . 118 . . . 141 . . . . . 333 68 326 37 362 . . . . 509 Average 246 | . 106 30 146 331 . . 218 403 . . . . 212 274 412 274 246 272 . . . . 349 Maximum Alert Level 3 | . 1 . 1 2 . . 1 3 . . . . 2 2 3 2 3 3 . . . . 2 Low Security (%) 43 | 100 90 100 66 6 . 100 41 18 . . . . 46 32 19 46 49 34 . . . . 16 Level 1 40 | . 9 . 33 70 . . 58 41 . . . . 34 60 37 32 36 50 . . . . 45 Level 2 13 | . . . . 23 . . . 23 . . . . 18 6 29 20 4 11 . . . . 37 Level 3 2 | . . . . . . . . 16 . . . . . . 13 . 10 2 . . . . . Level 4 . | . . . . . . . . . . . . . . . . . . . . . . . . Level 5 . | . . . . . . . . . . . . . . . . . . . . . . . . High Security . | . . . . . . . . . . . . . . . . . . . . . . . . Max Security . | . . . . . . . . . . . . . . . . . . . . . . . . Squads Dispatched 76 | . 4 . 5 2 . . 4 15 . . . . 19 2 2 . 8 12 . . . . 3 Investigation 27 | . 2 . 3 1 . . 4 2 . . . . 8 1 2 . 1 3 . . . . . Extermination 23 | . . . . . . . . 4 . . . . 8 . . . 1 8 . . . . 2 Reinforcement 12 | . 2 . 2 1 . . . 2 . . . . 2 1 . . 1 . . . . . 1 Assault 3 | . . . . . . . . 1 . . . . 1 . . . . 1 . . . . . Garrison 11 | . . . . . . . . 6 . . . . . . . . 5 . . . . . . Intercept . | . . . . . . . . . . . . . . . . . . . . . . . . Searches Triggered 1 | . . . . . . . . . . . . . . . . . . . . . . . 1 Construction Impeded 3 | . . . . 1 . . . 1 . . . . . . . . . . . . . . 1 Haulers Reinforced 3 | . . . . . . . . 1 . . . . 1 . . . 1 . . . . . . Active Scanning Responses . | . . . . . . . . . . . . . . . . . . . . . . . . Cargo Convoy Interrupts . | . . . . . . . . . . . . . . . . . . . . . . . . Stealth | -11 -10 -10 -9 -9 -9 -8 -8 -7 -7 -7 -7 -6 -6 -6 -6 -6 -6 -5 -5 -5 -5 -4 -4 --------- Run | Jun Mat Min Mat Min Exi Min Mat Fac Low Low Zio Pro Fac Ext Cet Arc Hub Fac Upp Upp Zhi Pro Fac Distress Signals 21 | . 2 . 6 . . . 3 2 . . . . 1 2 2 . . 2 . . . . 1 Communications Jammed 13 | . . . . . . . . . . . . . . . . . . 10 . . . 3 . Distress Signals 10 | . . . . . . . . . . . . . . . . . . 10 . . . . . Times Spotted 530 | . 25 . 43 17 . . 27 32 1 11 45 9 53 14 56 28 31 62 29 5 . 19 23 Peak Tracking Total 9 | . 4 . 6 4 . . 5 9 1 5 8 4 7 6 7 1 4 8 8 4 . 4 9 Tactical Retreats 35 | . 1 . . 3 . . 3 2 . . 4 1 4 . 5 . 4 2 2 1 . 1 2 Traps | -11 -10 -10 -9 -9 -9 -8 -8 -7 -7 -7 -7 -6 -6 -6 -6 -6 -6 -5 -5 -5 -5 -4 -4 ------- Run | Jun Mat Min Mat Min Exi Min Mat Fac Low Low Zio Pro Fac Ext Cet Arc Hub Fac Upp Upp Zhi Pro Fac Traps Triggered 7 | . 3 . 1 . . . . 2 . . . . . . . . . 1 . . . . . Indirectly . | . . . . . . . . . . . . . . . . . . . . . . . . Trap Hack Attempts . | . . . . . . . . . . . . . . . . . . . . . . . . Triggered . | . . . . . . . . . . . . . . . . . . . . . . . . Disarmed 6 | . . . . . . . 2 . . . . . . . . . . 4 . . . . . Reprogrammed . | . . . . . . . . . . . . . . . . . . . . . . . . Reused . | . . . . . . . . . . . . . . . . . . . . . . . . Traps Extracted . | . . . . . . . . . . . . . . . . . . . . . . . . Installed . | . . . . . . . . . . . . . . . . . . . . . . . . Triggered 1 | . . . . . . . . . . . . . . . . . . . . . . 1 . Exploded 1 | . . . . . . . . . . . . . 1 . . . . . . . . . . Machines | -11 -10 -10 -9 -9 -9 -8 -8 -7 -7 -7 -7 -6 -6 -6 -6 -6 -6 -5 -5 -5 -5 -4 -4 ---------- Run | Jun Mat Min Mat Min Exi Min Mat Fac Low Low Zio Pro Fac Ext Cet Arc Hub Fac Upp Upp Zhi Pro Fac Machines Disabled 66 | . . . 1 9 . . . 4 . 1 1 . 8 5 5 4 12 6 6 . . . 4 Max in Single Turn 9 | . . . 1 8 . . . 4 . 1 1 . 5 2 2 1 9 2 4 . . . 2 Garrison Access 6 | . . . . . . . . 1 . . . . 4 . . . . 1 . . . . . Network Hub 1 | . . . . . . . . . . . . . . . . . 1 . . . . . . Energy Cycler 2 | . . . . . . . . . . . . . . 2 . . . . . . . . . Machines Repaired . | . . . . . . . . . . . . . . . . . . . . . . . . Machines Sabotaged . | . . . . . . . . . . . . . . . . . . . . . . . . Overloaded Fab Kills . | . . . . . . . . . . . . . . . . . . . . . . . . Hacking | -11 -10 -10 -9 -9 -9 -8 -8 -7 -7 -7 -7 -6 -6 -6 -6 -6 -6 -5 -5 -5 -5 -4 -4 --------- Run | Jun Mat Min Mat Min Exi Min Mat Fac Low Low Zio Pro Fac Ext Cet Arc Hub Fac Upp Upp Zhi Pro Fac Machines Accessed 120 | . 7 1 13 1 2 . 14 13 . 5 . . 33 3 3 1 1 19 . 2 . 1 1 Terminals 63 | . 5 . 9 . . . 11 8 . 1 . . 13 2 3 . 1 9 . . . 1 . Fabricators 7 | . . . . . . . . . . . . . 4 . . . . 3 . . . . . Repair Stations 11 | . 1 . 1 . . . 1 . . . . . 5 . . . . 3 . . . . . Recycling Units 11 | . 1 . 1 . . . 1 1 . . . . 4 1 . . . 1 . . . . 1 Scanalyzers 11 | . . . 2 . . . 1 3 . . . . 3 . . . . 2 . . . . . Garrison Access 6 | . . . . . . . . 1 . . . . 4 . . . . 1 . . . . . Total Hacks 617 | . 24 1 44 1 24 . 66 46 . 13 . . 174 8 6 25 7 161 . 4 . 6 7 Successful 450 | . 15 1 26 1 24 . 54 39 . 13 . . 112 4 2 25 4 116 . 4 . 6 4 Failed 159 | . 8 . 18 . . . 9 7 . . . . 62 4 4 . 3 41 . . . . 3 Catastrophic 25 | . 1 . 4 . . . 1 . . . . . 11 2 1 . . 5 . . . . . Database Lockouts 8 | . 1 . . . . . 3 . . . . . . . . . . 4 . . . . . Manual 214 | . 17 . 29 . 1 . 23 12 . 1 . . 63 1 2 3 3 52 . . . . 7 Terminals 316 | . 19 . 32 . . . 51 22 . 2 . . 75 6 6 . 7 90 . . . 6 . Fabricators 33 | . . . . . . . . . . . . . 20 . . . . 13 . . . . . Repair Stations 80 | . 3 . 4 . . . 8 . . . . . 41 . . . . 24 . . . . . Recycling Units 35 | . 2 . 2 . . . 3 4 . . . . 10 2 . . . 5 . . . . 7 Scanalyzers 68 | . . . 6 . . . 4 14 . . . . 20 . . . . 24 . . . . . Garrison Access 19 | . . . . . . . . 6 . . . . 8 . . . . 5 . . . . . Terminal Hacks 235 | . 7 1 11 1 24 . 34 14 . 13 . . 36 2 2 25 3 52 . 4 . 6 . Record 92 | . . . 3 . 23 . 10 1 . 11 . . 2 . 1 25 . 7 . 3 . 6 . Part Schematic 26 | . . . . . . . 1 5 . . . . 10 1 . . . 9 . . . . . Robot Analysis 9 | . 2 . 2 . . . 4 1 . . . . . . . . . . . . . . . Prototype ID Bank 9 | . 1 . 1 . . . 2 1 . . . . 1 . . . . 3 . . . . . Open Door 7 | . . 1 . 1 . . . . . 2 . . 1 . 1 . . . . 1 . . . Open DSF 2 | . . . . . . . . 1 . . . . . . . . . 1 . . . . . Level Access Points 1 | . . . . . . . . . . . . . . . . . . 1 . . . . . Branch Access Points 4 | . . . . . . . 1 1 . . . . 1 . . . . 1 . . . . . Emergency Access Points 2 | . . . . . . . . . . . . . . . . . 1 1 . . . . . Machine Index 2 | . . . . . . . . 1 . . . . . . . . . 1 . . . . . Terminal Index 3 | . . . . . . . 1 . . . . . . . . . 1 1 . . . . . Scanalyzer Index 1 | . . . . . . . 1 . . . . . . . . . . . . . . . . Alert Level 19 | . 1 . 2 . . . 2 . . . . . 6 1 . . . 7 . . . . . Unreport Threat 9 | . . . . . . . 1 . . . . . 5 . . . . 3 . . . . . Locate Traps 3 | . 1 . . . . . . . . . . . . . . . . 2 . . . . . Disarm Traps 3 | . . . . . . . 2 . . . . . . . . . . 1 . . . . . Dispatch Records 7 | . 1 . 1 . . . 1 1 . . . . 2 . . . . 1 . . . . . Maintenance Status 4 | . . . 1 . . . . . . . . . 2 . . . . 1 . . . . . Security Status 3 | . . . . . . . 1 . . . . . 1 . . . . 1 . . . . . Surveillance Status 2 | . . . . . . . 1 . . . . . . . . . . 1 . . . . . Patrol Status 2 | . . . . . . . . . . . . . 1 . . . . 1 . . . . . Transport Status 1 | . . . . . . . 1 . . . . . . . . . . . . . . . . Investigation Status 2 | . . . . . . . 1 . . . . . . . . . . 1 . . . . . Reinforcement Status 1 | . . . . . . . . . . . . . 1 . . . . . . . . . . Recall Investigation 2 | . . . . . . . . . . . . . 1 . . . . 1 . . . . . Recall Reinforcements 1 | . . . . . . . . . . . . . 1 . . . . . . . . . . Hauler Manifests 9 | . 1 . 1 . . . 2 1 . . . . 1 . . . 1 2 . . . . . Registered Components 2 | . . . . . . . 1 . . . . . . . . . . 1 . . . . . Registered Prototypes 3 | . . . . . . . 1 1 . . . . . . . . . 1 . . . . . Zone Layout 2 | . . . . . . . . . . . . . . . . . . 2 . . . . . Patrol Navigation 1 | . . . . . . . . . . . . . . . . . . 1 . . . . . EX-Prototype ID Bank 1 | . . . . . 1 . . . . . . . . . . . . . . . . . . Fabricator Hacks 19 | . . . . . . . . . . . . . 10 . . . . 9 . . . . . Network Status 6 | . . . . . . . . . . . . . 3 . . . . 3 . . . . . Load Schematic 7 | . . . . . . . . . . . . . 4 . . . . 3 . . . . . Build 6 | . . . . . . . . . . . . . 3 . . . . 3 . . . . . Repair Station Hacks 67 | . 3 . 3 . . . 7 . . . . . 32 . . . . 22 . . . . . Scan Component 36 | . 2 . 2 . . . 4 . . . . . 17 . . . . 11 . . . . . Repair 31 | . 1 . 1 . . . 3 . . . . . 15 . . . . 11 . . . . . Recycling Unit Hacks 7 | . 1 . 1 . . . . 1 . . . . 2 2 . . . . . . . . . Report Inventory 4 | . 1 . 1 . . . . . . . . . 1 1 . . . . . . . . . Retrieve Matter 2 | . . . . . . . . 1 . . . . 1 . . . . . . . . . . Retrieve Components 1 | . . . . . . . . . . . . . . 1 . . . . . . . . . Scanalyzer 56 | . . . 5 . . . 2 14 . . . . 13 . . . . 22 . . . . . Insert Component 25 | . . . 2 . . . 1 6 . . . . 7 . . . . 9 . . . . . Analyze 31 | . . . 3 . . . 1 8 . . . . 6 . . . . 13 . . . . . Garrison Access Hacks 4 | . . . . . . . . . . . . . 3 . . . . 1 . . . . . Seal Access 4 | . . . . . . . . . . . . . 3 . . . . 1 . . . . . Unauthorized Hacks 62 | . 4 . 6 . . . 11 10 . . . . 16 . . . 1 10 . . . . 4 Terminals 27 | . 3 . 4 . . . 6 3 . . . . 4 . . . 1 6 . . . . . Track 1 | . . . . . . . 1 . . . . . . . . . . . . . . . . Assimilate 5 | . . . 1 . . . 1 . . . . . 1 . . . . 2 . . . . . Botnet 16 | . 3 . 2 . . . 3 2 . . . . 2 . . . 1 3 . . . . . Operators 5 | . . . 1 . . . 1 1 . . . . 1 . . . . 1 . . . . . Fabricators 3 | . . . . . . . . . . . . . 1 . . . . 2 . . . . . Fabnet 1 | . . . . . . . . . . . . . . . . . . 1 . . . . . Haulers 2 | . . . . . . . . . . . . . 1 . . . . 1 . . . . . Repair Stations 2 | . . . . . . . 1 . . . . . 1 . . . . . . . . . . Mechanics 2 | . . . . . . . 1 . . . . . 1 . . . . . . . . . . Recycling Units 21 | . 1 . 1 . . . 3 3 . . . . 7 . . . . 2 . . . . 4 Monitor 4 | . . . . . . . 1 1 . . . . 1 . . . . . . . . . 1 Reject 4 | . . . . . . . . 1 . . . . 1 . . . . 1 . . . . 1 Recyclers 5 | . . . . . . . 1 1 . . . . 1 . . . . 1 . . . . 1 Mask 2 | . . . . . . . . . . . . . 1 . . . . . . . . . 1 Tunnel 6 | . 1 . 1 . . . 1 . . . . . 3 . . . . . . . . . . Scanalyzers 2 | . . . 1 . . . 1 . . . . . . . . . . . . . . . . Extract 2 | . . . 1 . . . 1 . . . . . . . . . . . . . . . . Garrison Access 7 | . . . . . . . . 4 . . . . 3 . . . . . . . . . . Broadcast 1 | . . . . . . . . 1 . . . . . . . . . . . . . . . Redirect 1 | . . . . . . . . 1 . . . . . . . . . . . . . . . Watchers 3 | . . . . . . . . 1 . . . . 2 . . . . . . . . . . Jam 2 | . . . . . . . . 1 . . . . 1 . . . . . . . . . . Data Cores Recovered 4 | . . . . . . . 3 . . . . . . 1 . . . . . . . . . Used 3 | . . . . . . . 3 . . . . . . . . . . . . . . . . Hacking Detections 95 | . 7 . 12 . . . 13 12 . . . . 27 3 2 . 1 18 . . . . . Full Trace Events 17 | . . . 3 . . . 2 1 . . . . 4 1 2 . 1 3 . . . . . Feedback Events . | . . . . . . . . . . . . . . . . . . . . . . . . Feedback Blocked . | . . . . . . . . . . . . . . . . . . . . . . . . Robot Schematics Acquired 4 | . . . . . . . . . . . 4 . . . . . . . . . . . . Robots Built . | . . . . . . . . . . . . . . . . . . . . . . . . Authchips . | . . . . . . . . . . . . . . . . . . . . . . . . Time . | . . . . . . . . . . . . . . . . . . . . . . . . Total Robot Build Rating . | . . . . . . . . . . . . . . . . . . . . . . . . Part Schematics Acquired 71 | . . . 8 . . . 4 11 . . 15 . 15 1 . . . 17 . . . . . Parts Built 9 | . . . . . . . . . . . . . 5 . . . . 4 . . . . . Authchips . | . . . . . . . . . . . . . . . . . . . . . . . . Time 440 | . . . . . . . . . . . . . 135 . . . . 305 . . . . . Total Part Build Rating 53 | . . . . . . . . . . . . . 28 . . . . 25 . . . . . Parts Repaired 31 | . 1 . 1 . . . 3 . . . . . 15 . . . . 11 . . . . . Time 1261 | . 26 . 26 . . . 111 . . . . . 545 . . . . 553 . . . . . Parts Recycled . | . . . . . . . . . . . . . . . . . . . . . . . . Recycled Matter . | . . . . . . . . . . . . . . . . . . . . . . . . Retrieved Matter . | . . . . . . . . . . . . . . . . . . . . . . . . Retrieved Components 9 | . . . . . . . . . . . . . . 9 . . . . . . . . . Parts Scanalyzed 23 | . . . 2 . . . 1 6 . . . . 5 . . . . 9 . . . . . Part Schematics Acquired 22 | . . . 2 . . . 1 6 . . . . 5 . . . . 8 . . . . . Parts Damaged 1 | . . . . . . . . . . . . . . . . . . 1 . . . . . Bothacking | -11 -10 -10 -9 -9 -9 -8 -8 -7 -7 -7 -7 -6 -6 -6 -6 -6 -6 -5 -5 -5 -5 -4 -4 ------------ Run | Jun Mat Min Mat Min Exi Min Mat Fac Low Low Zio Pro Fac Ext Cet Arc Hub Fac Upp Upp Zhi Pro Fac Used RIF Installer . | . . . . . . . . . . . . . . . . . . . . . . . . Robots Hacked 11 | . . . . . . . . . . . . . 2 . . 5 . 2 . . . . 2 Non-combat 9 | . . . . . . . . . . . . . 2 . . 5 . 2 . . . . . Combat 2 | . . . . . . . . . . . . . . . . . . . . . . . 2 Robot Hacks Applied 16 | . . . . . . . . . . . . . 4 . . 9 . 3 . . . . . parse_system 3 | . . . . . . . . . . . . . 1 . . 1 . 1 . . . . . no_distress 3 | . . . . . . . . . . . . . 2 . . . . 1 . . . . . find_chute 1 | . . . . . . . . . . . . . 1 . . . . . . . . . . find_recycling 1 | . . . . . . . . . . . . . . . . . . 1 . . . . . check_alert 8 | . . . . . . . . . . . . . . . . 8 . . . . . . . Relay Couplers Released 7 | . . . . . . . . . . . . . 7 . . . . . . . . . . Programmers 7 | . . . . . . . . . . . . . 7 . . . . . . . . . . Fabnet Peak Effective % 3 | . . . . . . . . . . . . . . . . . . . . . . 3 3 Autooverrided 2 | . . . . . . . . . . . . . . . . . . . . . . . 2 Robots Rewired . | . . . . . . . . . . . . . . . . . . . . . . . . Allies Hacked 2 | . . . . . . . . . . . . . . . . . . 2 . . . . . Hacks Repelled . | . . . . . . . . . . . . . . . . . . . . . . . . Allies | -11 -10 -10 -9 -9 -9 -8 -8 -7 -7 -7 -7 -6 -6 -6 -6 -6 -6 -5 -5 -5 -5 -4 -4 -------- Run | Jun Mat Min Mat Min Exi Min Mat Fac Low Low Zio Pro Fac Ext Cet Arc Hub Fac Upp Upp Zhi Pro Fac Total Allies 15 | . . . 4 3 . . . . . . . . 1 1 . . . 2 . 2 . . 2 Largest Group 2 | . . . 2 1 . . . . . . . . 1 1 . . . 1 . 2 . . 1 Highest-Rated Group 54 | . . . 28 34 . . . . . . . . 10 25 . . . 26 . 45 . . 54 Highest-Rated Ally 54 | . . . 15 34 . . . . . . . . 10 25 . . . 26 . 25 . . 54 Total Orders 144 | . . 3 36 10 . . . . . . 1 . 3 5 1 . 2 16 28 21 . 18 . STAY 5 | . . . . . . . . . . . . . . . . . . 5 . . . . . ROAM 32 | . . . 3 5 . . . . . . . . 1 . . . 1 3 7 9 . 3 . FOLLOW 6 | . . . . . . . . . . . . . . . . . . 6 . . . . . EXPLORE 80 | . . 2 24 4 . . . . . . . . 2 . . . 1 2 18 12 . 15 . RETURN 21 | . . 1 9 1 . . . . . . 1 . . 5 1 . . . 3 . . . . Ally Attacks 47 | . . . 30 12 . . . . . . . . . 1 . . . . . . . . 4 Total Damage 386 | . . . 161 64 . . . . . . . . . . . . . . . . . . 161 Kills 7 | . . . 5 1 . . . . . . . . . . . . . . . . . . 1 Allies Corrupted 1 | . . . . . . . . . . . . . . . . . . . . . . 1 . Allies Melted . | . . . . . . . . . . . . . . . . . . . . . . . . Intel | -11 -10 -10 -9 -9 -9 -8 -8 -7 -7 -7 -7 -6 -6 -6 -6 -6 -6 -5 -5 -5 -5 -4 -4 ------- Run | Jun Mat Min Mat Min Exi Min Mat Fac Low Low Zio Pro Fac Ext Cet Arc Hub Fac Upp Upp Zhi Pro Fac Robot Analysis Total 9 | . 2 . 2 . . . 4 1 . . . . . . . . . . . . . . . Derelict Logs Recovered 13 | . . 2 . 2 . . . . 1 1 1 2 . . . . . . 1 1 . 2 . Drone Launches 119 | . . 1 33 10 . . . . . . 1 . 3 5 1 . 2 2 23 20 . 18 . Drone Recoveries 109 | . . 1 30 7 . . . . . . 1 . 2 5 1 . 1 1 23 20 . 17 . Exploration | -11 -10 -10 -9 -9 -9 -8 -8 -7 -7 -7 -7 -6 -6 -6 -6 -6 -6 -5 -5 -5 -5 -4 -4 ------------- Run | Jun Mat Min Mat Min Exi Min Mat Fac Low Low Zio Pro Fac Ext Cet Arc Hub Fac Upp Upp Zhi Pro Fac Turns Passed 42031 | 49 1177 599 3071 942 633 899 1991 3080 1488 1913 1781 849 7213 1900 1232 1505 1235 5553 1382 1392 10 982 1155 Spaces Moved 22661 | 37 632 504 1360 343 484 645 1217 1803 1023 1381 1139 574 3957 1081 555 562 372 2837 526 520 7 474 628 Core 2 | 1 . . . . . . . . . . . . 1 . . . . . . . . . . Treads 2279 | . 34 . 780 294 . . 8 15 . . . . . . 2 274 142 94 162 454 . 20 . Legs . | . . . . . . . . . . . . . . . . . . . . . . . . Wheels 20380 | 36 598 504 580 49 484 645 1209 1788 1023 1381 1139 574 3956 1081 553 288 230 2743 364 66 7 454 628 Hover . | . . . . . . . . . . . . . . . . . . . . . . . . Flight . | . . . . . . . . . . . . . . . . . . . . . . . . Fastest Speed 50 | 50 100 105 115 130 130 130 115 125 130 130 115 130 130 145 145 160 145 135 150 155 155 155 135 Average Speed 148 | 98 108 109 188 224 130 130 125 133 144 130 130 133 138 152 161 199 191 150 198 239 155 161 156 Slowest Speed 1100 | 100 240 120 240 240 130 130 237 237 145 130 145 145 1100 160 240 240 240 240 320 320 155 320 190 Overloaded Moves . | . . . . . . . . . . . . . . . . . . . . . . . . Propulsion Burnouts . | . . . . . . . . . . . . . . . . . . . . . . . . Robots Hopped . | . . . . . . . . . . . . . . . . . . . . . . . . Cave-ins Triggered 1 | . . . . . . . . . . . . . . 1 . . . . . . . . . Exploration Rate (%) 73 | 3 96 99 100 99 91 88 66 42 98 99 64 82 74 79 94 98 33 45 91 98 7 96 14 Regions Visited 23 Branch Regions 16 Pre-discovered Areas 11 | . 1 1 1 1 1 . 1 . . . 1 . 3 . . . . . 1 . . . . Known Exits Taken 7 | . . 1 . . . . . 1 . . . . 1 1 . . 1 1 . . . 1 . Unknown Exits Taken 16 | 1 1 . 1 1 1 1 1 . 1 1 1 1 . . 1 1 . . 1 1 1 . . Scrap Searched 25 | . . 1 . 1 . 1 . . 5 4 . 2 . . . . . . 3 5 . 3 . Spaces Dug 118 | . . . 6 . . . 6 11 . 3 . . 55 9 . . . 20 . 2 . 2 4 Terrain Destroyed 963 | . . . 6 33 . . 13 65 . 32 50 2 138 60 173 13 201 88 25 7 . 27 30 Melee 8 | . . . 6 . . . . . . . . . 2 . . . . . . . . . . Projectile 305 | . . . . 1 . . 13 11 . 6 1 2 85 20 10 13 31 53 14 7 . 23 15 AOE 649 | . . . . 32 . . . 54 . 26 49 . 50 40 163 . 170 35 11 . . 4 15 Terrain Rammed . | . . . . . . . . . . . . . . . . . . . . . . . . Walls Destroyed . | . . . . . . . . . . . . . . . . . . . . . . . . Machines Disabled . | . . . . . . . . . . . . . . . . . . . . . . . . Actions | -11 -10 -10 -9 -9 -9 -8 -8 -7 -7 -7 -7 -6 -6 -6 -6 -6 -6 -5 -5 -5 -5 -4 -4 --------- Run | Jun Mat Min Mat Min Exi Min Mat Fac Low Low Zio Pro Fac Ext Cet Arc Hub Fac Upp Upp Zhi Pro Fac Total 29050 | 46 998 550 1694 443 487 705 1558 2318 1029 1443 1290 610 5392 1276 762 864 789 3905 804 647 6 655 779 Wait 3393 | . 217 43 132 34 . 60 122 234 3 3 2 . 996 103 23 199 284 644 122 73 . 73 26 Move 22637 | 36 631 503 1359 342 483 644 1216 1802 1022 1380 1138 573 3956 1079 554 561 371 2836 525 519 6 473 628 Hop . | . . . . . . . . . . . . . . . . . . . . . . . . Pick Up 341 | 4 24 1 24 4 1 . 26 41 . 4 6 5 50 6 11 10 13 54 20 6 . 16 15 Fast Attach 147 | 6 10 1 4 . . . 9 13 . 5 6 2 22 3 10 1 9 20 8 6 . 5 7 Attach 196 | . 2 . 4 . . . 3 17 . 2 5 4 7 4 11 6 14 58 21 6 . 14 18 Detach 98 | . 5 1 3 . . . 4 3 . 1 . . 8 . 9 1 9 36 6 2 . 1 9 Swap 440 | . 32 . 57 22 2 1 33 37 3 6 11 . 87 23 30 6 12 49 6 8 . 7 8 Drop 399 | . 16 1 27 5 1 . 33 52 . 8 9 . 49 10 20 11 16 59 26 10 . 22 24 Fire 1353 | . 43 . 77 36 . . 108 119 1 34 113 26 211 47 93 60 61 149 70 17 . 44 44 Melee 44 | . 18 . 7 . . . 4 . . . . . 6 . . 9 . . . . . . . Ram . | . . . . . . . . . . . . . . . . . . . . . . . . Kick . | . . . . . . . . . . . . . . . . . . . . . . . . Crush . | . . . . . . . . . . . . . . . . . . . . . . . . Escape Stasis 1 | . . . . . . . . . . . . . . 1 . . . . . . . . . Rewire 1 | . . . . . . . . . . . . . . . 1 . . . . . . . . Trap . | . . . . . . . . . . . . . . . . . . . . . . . . Miscellaneous . | . . . . . . . . . . . . . . . . . . . . . . . . Route ------- -11/Junkyard -10/Materials (discovered 4 exits: *Mat x3 / *Min) -10/Mines (discovered 2 exits: *Mat x2) -9/Materials (discovered 5 exits: *Mat x3 / *Min x2) -9/Mines (discovered 3 exits: *Mat x2 / *Exi) -9/Exiles (discovered 2 exits: [*Min x2]) -8/Mines -8/Materials -7/Factory (discovered 4 exits: *Sto x2 / *Low x2) -7/Lower Caves -7/Lower Caves (discovered 2 exits: *Fac / [*Zio]) -7/Zion -6/Proximity Caves -6/Factory (discovered 8 exits: *Fac x4 / *Low x2 / *Ext x2) -6/Extension (discovered 3 exits: *Fac x2 / *Cet) -6/Cetus (discovered 3 exits: *Fac x2 / *Arc) -6/Archives (discovered 3 exits: *Fac / *Hub x2) -6/Hub_04(d) (discovered 2 exits: *Fac x2) -5/Factory (discovered 6 exits: *Fac x4 / *Upp x2) -5/Upper Caves -5/Upper Caves (discovered 2 exits: *Fac / [*Zhi]) -5/Zhirov -4/Proximity Caves -4/Factory (discovered 2 exits: Res / Upp) History --------- Turn | Location | Event 31 | -11/Junkyard | Discovered new exit (range 15) 50 | -11/Junkyard | Entered Materials 313 | -10/Materials | Build established: Mutant 402 | -10/Materials | Discovered new exit (range 18) 479 | -10/Materials | Central database locked down 561 | -10/Materials | Discovered new exit (range 8) 778 | -10/Materials | Discovered new exit (range 11) 845 | -10/Materials | Discovered new exit (range 16) 1007 | -10/Materials | Core integrity fell below 50% 1200 | -10/Materials | Repaired Lgt. Treads 1227 | -10/Materials | Entered Mines 1231 | -10/Mines | Identified exit to Materials 1309 | -10/Mines | Learned location of Storage (-7) 1625 | -10/Mines | Found the Drone Emporium 1631 | -10/Mines | Found Prototype Device 1631 | -10/Mines | Identified Splice Drone Bay 1652 | -10/Mines | Discovered exit to Materials (range 27) 1718 | -10/Mines | Learned Materials emergency access door positions 1826 | -10/Mines | Entered Materials 1826 | -9/Materials | Evolved 2 slots: Utility x2 1838 | -9/Materials | Discovered new exit (range 30) 2174 | -9/Materials | Discovered new exit (range 16) 2247 | -9/Materials | Discovered new exit (range 14) 3165 | -9/Materials | Discovered new exit (range 16) 3370 | -9/Materials | Repaired Lgt. Armor Plating 3918 | -9/Materials | Discovered new exit (range 19) 4897 | -9/Materials | Entered Mines 5024 | -9/Mines | Discovered new exit (range 18) 5026 | -9/Mines | Learned Materials emergency access door positions 5031 | -9/Mines | Received a Rocket Launcher from a helpful Derelict 5310 | -9/Mines | Discovered new exit (range 35) 5363 | -9/Mines | Assembled infested the area 5457 | -9/Mines | Discovered new exit (range 57) 5462 | -9/Mines | Met 8R-AWN 5636 | -9/Mines | Learned location of Zion (-7) 5673 | -9/Mines | Met a Derelict shopkeep closing up shop 5839 | -9/Mines | Entered Exiles 5863 | -9/Exiles | Discovered new exit (range 15) 5904 | -9/Exiles | Welcomed by 8R-AWN 5926 | -9/Exiles | Met EX-HEX 6005 | -9/Exiles | Met EX-DEC 6045 | -9/Exiles | Visited The Gauntlet 6252 | -9/Exiles | Met EX-BIN 6268 | -9/Exiles | Aligned with FarCom system 6269 | -9/Exiles | Given EX-Vault access code 6325 | -9/Exiles | Opened EX-Vault 6336 | -9/Exiles | Found Gui. Plasma Cannon 6363 | -9/Exiles | Warned to stay clear of 0b10 Research branches 6456 | -9/Exiles | Discovered new exit (range 14) 6472 | -9/Exiles | Left Exiles lab with Gui. Plasma Cannon 6472 | -9/Exiles | Entered Mines 6961 | -8/Mines | Discovered new exit (range 7) 7371 | -8/Mines | Entered Materials 7371 | -8/Materials | Evolved 2 slots: Utility x2 7820 | -8/Materials | Discovered new exit (range 15) 7854 | -8/Materials | Build established: Hacker-Mutant 8454 | -8/Materials | Central database locked down 8514 | -8/Materials | Repaired Shield Generator? 8576 | -8/Materials | Repaired Broken Imp. Heat Sink? 8624 | -8/Materials | Repaired Ion Engine 8826 | -8/Materials | Central database locked down 9036 | -8/Materials | Central database locked down 9362 | -8/Materials | Entered Factory 9362 | -7/Factory | Evolved 2 slots: Utility x2 9402 | -7/Factory | Identified exit to DSF 9506 | -7/Factory | Garrison activated, responded to threat 10376 | -7/Factory | Discovered new exit (range 10) 10776 | -7/Factory | Identified exit to Storage 10776 | -7/Factory | Identified exit to Lower Caves 11593 | -7/Factory | Garrison activated, responded to threat 11762 | -7/Factory | First assault squad dispatched 11873 | -7/Factory | Destroyed 9 combat bots 12442 | -7/Factory | Entered Lower Caves 12882 | -7/Lower Caves | Learned Factory interactive machine intel 13599 | -7/Lower Caves | Encountered a Warlord checkpoint 13726 | -7/Lower Caves | Discovered new exit (range 14) 13930 | -7/Lower Caves | Entered another Lower Caves area 14005 | -7/Lower Caves | Learned location of 1 exit from Factory 14032 | -7/Lower Caves | Discovered new exit (range 14) 14230 | -7/Lower Caves | Learned 8 Research zone layouts 14230 | -7/Lower Caves | Learned Factory trap positions 14230 | -7/Lower Caves | Learned Armory emergency access door positions 14230 | -7/Lower Caves | Learned Armory garrison access intel 15216 | -7/Lower Caves | Found Alien Artifact 15216 | -7/Lower Caves | Identified Dimensional Node Initializer 15216 | -7/Lower Caves | Initialized slip node 15318 | -7/Lower Caves | Attacked by a delusional Derelict stockpiling parts 15553 | -7/Lower Caves | Discovered new exit (range 5) 15843 | -7/Lower Caves | Entered Zion 15928 | -7/Zion | Discovered new exit (range 15) 16006 | -7/Zion | Given the Hacking Drone Bay 16009 | -7/Zion | Found Prototype Device 16009 | -7/Zion | Identified Hacking Drone Bay 16705 | -7/Zion | Learned location of Quarantine (-2) 17020 | -7/Zion | Rebuked by Imprinter 17047 | -7/Zion | Attempted to imprint without authorization 17047 | -7/Zion | Attacked by Zionites 17453 | -7/Zion | Destroyed Imprinter 17457 | -7/Zion | Extracted access codes from Imprinter's data core 17537 | -7/Zion | Spotted JQ-E1V(B) 17546 | -7/Zion | Spotted ET-5ST(B) 17615 | -7/Zion | Core integrity fell below 50% 17624 | -7/Zion | Entered Proximity Caves 17626 | -6/Proximity Caves | Attracted the attention of an 0b10 checkpoint 17641 | -6/Proximity Caves | Lost 7 parts (1p1n3u2w) 18157 | -6/Proximity Caves | Learned Factory terminal intel 18439 | -6/Proximity Caves | Discovered new exit (range 9) 18473 | -6/Proximity Caves | Entered Factory 18473 | -6/Factory | Evolved 2 slots: Utility x2 18474 | -6/Factory | Identified exit to Lower Caves 18475 | -6/Factory | Identified exit to Factory 18476 | -6/Factory | Loaded intel: 84 trap records 18477 | -6/Factory | Loaded intel: 54 interactive machine locations 18478 | -6/Factory | Loaded intel: 28 terminal locations 18520 | -6/Factory | Discovered exit to Factory (range 5) 18555 | -6/Factory | Discovered exit to Factory (range 15) 18797 | -6/Factory | Repaired Cld. Deuterium Engine 19063 | -6/Factory | Build established: Wizard-Mutant 19521 | -6/Factory | Repaired KE Penetrator? 19583 | -6/Factory | Repaired Arm. Huge Wheel 19628 | -6/Factory | Repaired Med. Reactive Plating? 19773 | -6/Factory | Repaired Flak Gun? 19802 | -6/Factory | Repaired Magnetic Acceleration Cannon 19827 | -6/Factory | Repaired Hvy. Plasma Cannon 19854 | -6/Factory | Repaired Imp. Medium Armor Plating 20286 | -6/Factory | Identified exit to Extension 20491 | -6/Factory | Fabricated Force Field (x2) 20813 | -6/Factory | Repaired Hrd. Medium Armor Plating 20884 | -6/Factory | Repaired Cld. Deuterium Engine 21709 | -6/Factory | Fabricated Adv. System Restoration Module (x2) 21969 | -6/Factory | Build established: Hacker-Mutant 21980 | -6/Factory | Fabricated Imp. Powered Armor? 22794 | -6/Factory | Noticed a derelict Sapper rigging charges 23665 | -6/Factory | Repaired Arm. Huge Wheel 23695 | -6/Factory | Repaired Adv. System Restoration Module 23731 | -6/Factory | Repaired Cld. Deuterium Engine 23757 | -6/Factory | Repaired Magnetic Acceleration Cannon 24766 | -6/Factory | Repaired Weapon Cycler 25395 | -6/Factory | Discovered exit to Factory (range 14) 25473 | -6/Factory | First assault squad dispatched 25686 | -6/Factory | Entered Extension 25690 | -6/Extension | Disrupted transfer network 25755 | -6/Extension | Found Hvy. Reactive Plating 25872 | -6/Extension | Rescued a captive Derelict 25925 | -6/Extension | Energy Cycler disabled 25926 | -6/Extension | Rescued a captive Derelict 25928 | -6/Extension | Rescued a captive Derelict 26055 | -6/Extension | Build established: Mutant 26344 | -6/Extension | Identified exit to Cetus 26968 | -6/Extension | Crushed by falling debris 27586 | -6/Extension | Entered Cetus 27605 | -6/Cetus | Spotted Cetus Guard 27605 | -6/Cetus | Spotted Cetus Guard 27637 | -6/Cetus | Destroyed Cetus Guard 27641 | -6/Cetus | Spotted Cetus Guard 27655 | -6/Cetus | Destroyed Cetus Guard 27674 | -6/Cetus | Destroyed Cetus Guard 27677 | -6/Cetus | Destroyed Cetus Guard 27854 | -6/Cetus | Discovered exit to Factory (range 15) 28040 | -6/Cetus | Discovered new exit (range 15) 28048 | -6/Cetus | Build established: Scavenger-Mutant 28074 | -6/Cetus | Spotted Cetus Guard 28075 | -6/Cetus | Spotted Cetus Guard 28084 | -6/Cetus | Spotted Cetus Guard 28089 | -6/Cetus | Destroyed Cetus Guard 28089 | -6/Cetus | Destroyed Cetus Guard 28101 | -6/Cetus | Destroyed Cetus Guard 28102 | -6/Cetus | Spotted Cetus Guard 28122 | -6/Cetus | Destroyed Cetus Guard 28153 | -6/Cetus | Destroyed 7 combat bots 28216 | -6/Cetus | Discovered exit to Factory (range 15) 28232 | -6/Cetus | Met Revision 17 28818 | -6/Cetus | Entered Archives 29059 | -6/Archives | Discovered new exit (range 16) 29064 | -6/Archives | Unable to access archive contents 29084 | -6/Archives | Discovered new exit (range 15) 29109 | -6/Archives | Unable to access archive contents 29109 | -6/Archives | Unable to access archive contents 29127 | -6/Archives | Unable to access archive contents 29130 | -6/Archives | Discovered exit to Factory (range 16) 29144 | -6/Archives | Unable to access archive contents 30323 | -6/Archives | Entered Hub_04(d) 30432 | -6/Hub_04(d) | Discovered exit to Factory (range 15) 30787 | -6/Hub_04(d) | Discovered exit to Factory (range 12) 30879 | -6/Hub_04(d) | Disrupted transfer network 31045 | -6/Hub_04(d) | Garrison activated, responded to threat 31276 | -6/Hub_04(d) | Build established: Wizard-Mutant 31403 | -6/Hub_04(d) | Network Hub disabled 31409 | -6/Hub_04(d) | Garrison activated, responded to threat 31439 | -6/Hub_04(d) | Destroyed 8 combat bots 31549 | -6/Hub_04(d) | Spotted Lightning 31554 | -6/Hub_04(d) | System corruption reached 10% 31554 | -6/Hub_04(d) | Spotted Lightning 31554 | -6/Hub_04(d) | Spotted Lightning 31558 | -6/Hub_04(d) | Entered Factory 31558 | -5/Factory | Evolved 2 slots: Power x1, Propulsion x1 32247 | -5/Factory | Discovered new exit (range 3) 32727 | -5/Factory | Identified exit to Upper Caves 32730 | -5/Factory | Repaired Hvy. Reactive Plating? 32869 | -5/Factory | Repaired Cld. Plasma Cannon? 32882 | -5/Factory | Central database locked down 32909 | -5/Factory | Identified exit to Factory 32990 | -5/Factory | Repaired Arm. Huge Wheel 33525 | -5/Factory | Build established: Hacker-Mutant 33695 | -5/Factory | Repaired Broken Prc. Grenade Launcher? 33815 | -5/Factory | Repaired Quantum Reactor 33889 | -5/Factory | Repaired Quantum Reactor 34047 | -5/Factory | Central database locked down 35061 | -5/Factory | Fabricated Adv. System Restoration Module? 35081 | -5/Factory | Repaired Force Field 35108 | -5/Factory | Repaired Lyr. Medium Armor Plating 35134 | -5/Factory | Repaired Hyb. Fission Core 35188 | -5/Factory | Repaired Centrium Heavy Treads 35232 | -5/Factory | Repaired Cld. Plasma Rifle 35411 | -5/Factory | Central database locked down 35411 | -5/Factory | Central database locked down 35577 | -5/Factory | Fabricated Com. Tesla Bomb Launcher (x1) 36411 | -5/Factory | Fabricated Adv. Hacking Suite? 36958 | -5/Factory | First assault squad dispatched 37111 | -5/Factory | Entered Upper Caves 37267 | -5/Upper Caves | Encountered a Warlord checkpoint 37402 | -5/Upper Caves | Build established: Scavenger-Mutant 37696 | -5/Upper Caves | Discovered new exit (range 35) 37744 | -5/Upper Caves | Learned location of Armory (-4) 37923 | -5/Upper Caves | Attracted the attention of an 0b10 base 37971 | -5/Upper Caves | Destroyed 8 combat bots 38493 | -5/Upper Caves | Entered another Upper Caves area 38537 | -5/Upper Caves | Discovered exit to Factory (range 16) 38843 | -5/Upper Caves | Discovered new exit (range 82) 39198 | -5/Upper Caves | A Commander dispatched an escort 39231 | -5/Upper Caves | Learned Armory trap positions 39231 | -5/Upper Caves | Learned Extension stockpile data 39300 | -5/Upper Caves | Learned location of 1 exit from Factory 39885 | -5/Upper Caves | Entered Zhirov 39885 | -5/Zhirov | Discovered new exit (range 3) 39895 | -5/Zhirov | Entered Proximity Caves 39903 | -4/Proximity Caves | Spotter reported a threat 39904 | -4/Proximity Caves | Spotter reported a threat 39931 | -4/Proximity Caves | Learned 4 Research zone layouts 40031 | -4/Proximity Caves | Learned Research trap positions 40031 | -4/Proximity Caves | Learned Armory stockpile data 40031 | -4/Proximity Caves | Learned Factory garrison access intel 40107 | -4/Proximity Caves | Spotter reported a threat 40422 | -4/Proximity Caves | Learned 8 Research zone layouts 40877 | -4/Proximity Caves | Entered Factory 40877 | -4/Factory | Evolved 2 slots: Utility x2 40878 | -4/Factory | Identified exit to Research 40879 | -4/Factory | Identified exit to Upper Caves 40880 | -4/Factory | Loaded intel: 4 garrison access locations 41164 | -4/Factory | Search patrols dispatched 41211 | -4/Factory | Local machine network offline 41332 | -4/Factory | Found Quantum Capacitor 41474 | -4/Factory | Build established: Hacker-Mutant 41923 | -4/Factory | Found Prototype Device 41923 | -4/Factory | Identified Exp. ECM Suite 42032 | -4/Factory | Self-destructed Last Messages --------------- 42016_ Slug penetrates Wall. 42017_ >> MONITOR: Recycling Unit F003 accepting Antigrav System (80%). 42018_ Slug penetrates Wall. 42019_ R-10 Processor collects Corrupted Com. Battery. 42020_ >> MONITOR: Recycling Unit F003 accepting Corrupted Lgt. Quantum Reactor (81%). 42021_ Wall collapses. 42023_ >> MONITOR: Recycling Unit F003 accepting Corrupted Myomer Leg (51%). 42023_ Slug penetrates Door. 42023_ Wheel destroyed. 42024_ Slug penetrates Wall. 42026_ Lgt. Angular Momentum Engine destroyed. 42026_ >> MONITOR: Recycling Unit F003 accepting Corrupted Lgt. Antimatter Reactor (54%). 42027_ Penetrated by Slug. 42028_ Slug penetrates Wall. 42028_ Penetrated by Slug. 42029_ >> MONITOR: Recycling Unit F003 accepting Corrupted Field Laser (55%). Map ----- +----------------------------------------------------+ | ?????????"?"?????????????????????????????????????? | | ????????""G""????????????????????????????????????? | | ?????????????????????????????????????????????????? | | ?????????????????????????????????????????????????? | | ?????????????????????????????????????????????????? | | ?????????????????????????????????????????????????? | | ??????????????????????????????????????????R??????? | | ?????????????????????????????????????????????????? | | ?????????????????????????????????????????????????? | | ?????????????????????????????????????????????????? | | ?????????????????????????????????????????????????? | | ?????????????????????????????????????????????????? | | ?????????????????????????????????????????????????? | | ???????????????? ?????????????????????????????? | | ??????????????+ ????????????????????????????? | | ??????????????+ ????????????????????????????? | | ??????????????+ ????????????????????????????? | | ??????????????? ???????????????????????????? | | ????????????????# ???????????????????????????? | | ????????????????# ################ ??????????? | | ????????????????# ??????????? | | ????????????????# ?????????? | | ????????????????# ?????????? | | ????????????????# ????????? | | ???????????????????? ????????????? | | ???????g???????????????# @ #???????????????????? | | ???????????????????????# #???????????????????? | | ######################## #???????????????????? | | # !! # ; #???????????????????? | | # ! # # +??????????????? | | # * # # ######??????????????? | | # # p # #???????????????????? | | #####"###"# h #######???????????????????? | | ^ #?##R #?????????????????????????? | | #??## #?????????????????????????? | | #??#" h #?????????????????????????? | | R / #?????????????????????????? | | ## ######## #?????????????????????????? | | ## #??????# #?????????????????????????? | | ?#+#??????# #?????????????????????????? | | ??????????##############?????????????????????????? | | ?????????????????????????????????????????????????? | | ?????????????????????????????????????????????????? | | ?????????????????????????????????????????????????? | | ?????????????????????????????????????????????????? | | ?????????????????????????????????????????????????? | | ?????????????????????????????????????????????????? | | ?????????????????????????????????????????????????? | | ?????????????????????????????????????????????????? | | ?????????????????????????????????????????????????? | +----------------------------------------------------+ Best States ------------- Heat Dissipation 72 Coolant Potential 65 Energy Generation 45 Energy Capacity 1150 Matter Stores 300 Matter Capacity 300 Sight Range 22 Robot Scan Range 16 Terrain Scan Range 20 Terrain Scan Density 10 ECM Strength 3 Jamming Range 14 Base Temperature (-) 200 EM Shielding 3 Armor Coverage 2900 Resistance: KI 40 Resistance: TH 30 Resistance: EM 25 Weapon Shielding 33 Weapon Cycling 20 Evasion (%) 40 Targeting Accuracy 8 Core Analysis 6 Recoil Reduction 3 Energy Filtering 50 Particle Charging 20 Kinecelleration 30 Offensive Hacking 42 Defensive Hacking 48 Item Schematics ----------------- Hacking Suite | -9/Materials | Scanalyzed Hrd. Medium Armor Plating | -9/Materials | Scanalyzed Weight Redist. System | -9/Materials | Extracted Visual Processing Unit | -9/Materials | Extracted EM Pulse Gun | -9/Materials | Extracted Shield Generator | -9/Materials | Extracted Med. Laser | -9/Materials | Extracted Hvy. EM Pulse Gun | -9/Materials | Extracted Cld. Ion Engine | -8/Materials | Hacked Hvy. Armor Plating | -8/Materials | Scanalyzed VSS Leg | -8/Materials | Extracted Autogun | -8/Materials | Extracted Insulated Plating | -7/Factory | Scanalyzed Disposable Heat Sink | -7/Factory | Scanalyzed Imp. Trap Extractor | -7/Factory | Scanalyzed Hpw. Shock Rifle | -7/Factory | Hacked Recalibrator | -7/Factory | Hacked Imp. Actuator Array | -7/Factory | Hacked Phase Shifter | -7/Factory | Hacked Arm. Huge Wheel | -7/Factory | Scanalyzed System Restoration Module | -7/Factory | Scanalyzed Cryofiber Web | -7/Factory | Scanalyzed Imp. Cooling System | -7/Factory | Hacked Mak. Leg | -7/Zion | Archive Lrn. Missile Launcher | -7/Zion | Archive Imp. EM Pulse Cannon | -7/Zion | Archive Adv. Terrain Scanner | -7/Zion | Archive Hvy. Missile Launcher | -7/Zion | Archive Energy Filter | -7/Zion | Archive Focal Shield | -7/Zion | Archive Enh. Gauss Cannon | -7/Zion | Archive Arc Thrower | -7/Zion | Archive Imp. Shock Absorption System | -7/Zion | Archive Mak. Shrapnel Gun | -7/Zion | Archive Imp. Reaction Control System | -7/Zion | Archive Mak. Salvage Targeting Computer | -7/Zion | Archive Hyp. Gauss Rifle | -7/Zion | Archive Mak. Power Source | -7/Zion | Archive Kinecellerator | -6/Factory | Scanalyzed Med. Reactive Plating | -6/Factory | Scanalyzed Force Field | -6/Factory | Hacked Adv. Shield Generator | -6/Factory | Hacked Imp. Powered Armor | -6/Factory | Hacked Lyr. Heavy Armor Plating | -6/Factory | Hacked Adv. System Restoration Module | -6/Factory | Hacked Adv. Hacking Suite | -6/Factory | Hacked Hyb. Fission Core | -6/Factory | Hacked Enh. Optical Array | -6/Factory | Hacked Imp. Transmission Jammer | -6/Factory | Hacked Dispersion Rifle | -6/Factory | Hacked Cld. Deuterium Engine | -6/Factory | Scanalyzed Cld. Plasma Cannon | -6/Factory | Scanalyzed Imp. Hardlight Generator | -6/Factory | Scanalyzed Hardcell Cannon | -6/Extension | Hacked Exp. Targeting Computer | -5/Factory | Hacked Imp. Corruption Screen | -5/Factory | Hacked Imp. Dynamic Insulation System | -5/Factory | Hacked Imp. Kinecellerator | -5/Factory | Hacked Imp. Thermal Shield | -5/Factory | Hacked Adv. Sensor Array | -5/Factory | Hacked Adv. Signal Interpreter | -5/Factory | Hacked Quantum Reactor | -5/Factory | Scanalyzed Centrium Heavy Treads | -5/Factory | Scanalyzed Hvy. Reactive Plating | -5/Factory | Scanalyzed Imp. Weapon Cycler | -5/Factory | Scanalyzed Prc. Grenade Launcher | -5/Factory | Scanalyzed Com. Tesla Bomb Launcher | -5/Factory | Hacked Imp. Particle Charger | -5/Factory | Scanalyzed Coolant Injector | -5/Factory | Scanalyzed Core Analyzer | -5/Factory | Scanalyzed Arm. Heavy Treads | -5/Factory | Hacked Robot Schematics ------------------ T-07 Excavator | -7/Zion | Archive Y-45 Defender | -7/Zion | Archive A-02 Transporter | -7/Zion | Archive Y-72 Warden | -7/Zion | Archive Fabricated ------------ Force Field | x2 | -6/Factory Adv. System Restoration Module | x2 | -6/Factory Imp. Powered Armor | x1 | -6/Factory Adv. System Restoration Module | x2 | -5/Factory Com. Tesla Bomb Launcher | x1 | -5/Factory Adv. Hacking Suite | x1 | -5/Factory Alien Tech Used ----------------- Dimensional Node Initializer Achievements -------------- Alien Tech Factory Defaults Leap Before You Look Quick And Dirty Revising The Future Turtlemind Challenges ------------ None Game ------ Seed KineticUtilityRefractor Manual? 0 Play Time 28:05:41 Cumulative 229.9 hours Start 2023.05.29 @ 14:46:16 End 2023.06.02 @ 13:03:05 Sessions 31 Manual Loads 0 Difficulty Rogue Special Mode None Game No. 16 Rogue 14 Adventurer 2 Explorer 0 Win Type - Total 1 Types 1/0/0/0/0/0/0/0/0 Lore% 31 Gallery% 44 Achievement% 36 Wizard Run 0 Options --------- ASCII 0 Keyboard 0 Movement Mouse Keybinds 0 Fullscreen 1 Font 24/Smallcaps Map View 76x50 Tactical HUD 1 Map Filters NONE Filters NONE Steam 1 RUN: 75589b7e-8b19-43b9-917e-72fcf90cc636